Cogmind - Beta 12 @@@ ROGUE MODE // 2023.05.13 @ 03:27:58 Player: Ms. V3-11A Result: Destroyed by G-34 Mercenary with Small Laser Performance ------------- Evolutions (0) 0 Regions Visited (1) 200 Robots Destroyed (20) 100 Value Destroyed (610) 610 Prototype IDs (2) 40 Alien Tech Used (0) 0 Bonus (16) 16 TOTAL SCORE: 966 Bonus ------- High Alert Combat Kills 16 Cogmind --------- Core Integrity 0/250 Matter 62/300 Energy 125/125 System Corruption 0% Temperature Cool (71) Movement Walking (190) Ox1 Location -10/Materials Parts ------- > --- POWER (1) -------- Light Ion Engine > --- PROPULSION (2) --- Aluminum Leg Aluminum Leg > --- UTILITY (2) ------ Large Storage Unit Power Shielding > --- WEAPON (2) ------- Light Assault Rifle Light Cannon > --- INVENTORY (15) --- Ion Engine Light Treads Light Treads Aluminum Leg Aluminum Leg Aluminum Leg Improved Heat Sink Large Storage Unit High-capacity Battery (250) Signal Interpreter Light Assault Rifle Light Assault Rifle Grenade Launcher Peak State ------------ > --- POWER ------------ Light Ion Engine > --- PROPULSION ------- Aluminum Leg Aluminum Leg > --- UTILITY ---------- Large Storage Unit Power Shielding > --- WEAPON ----------- Light Assault Rifle Grenade Launcher > --- INVENTORY -------- Ion Engine Light Treads Light Treads Aluminum Leg Aluminum Leg Improved Heat Sink Large Storage Unit High-capacity Battery Signal Interpreter Light Assault Rifle [Rating: 8] Favorites ----------- Power Light Ion Engine Engine Light Ion Engine Propulsion Aluminum Leg Leg Aluminum Leg Utility Large Storage Unit Device Heat Sink Storage Large Storage Unit Protection Power Shielding Weapon Light Assault Rifle Energy Gun Small Laser Ballistic Gun Light Assault Rifle Ballistic Cannon Light Cannon Launcher Grenade Launcher Build | -11 -10 ------- Run | Jun Mat Slots Evolved . | . . Power . | . . Propulsion . | . . Utility . | . . Weapon . | . . Parts Attached 19 | . 19 Power 2 | . 2 Engine 2 | . 2 Core . | . . Reactor . | . . Propulsion 5 | . 5 Treads . | . . Leg 5 | . 5 Wheel . | . . Hover . | . . Flight . | . . Utility 3 | . 3 Device 1 | . 1 Storage 1 | . 1 Processor . | . . Hackware . | . . Protection 1 | . 1 Artifact . | . . Weapon 9 | . 9 Energy Gun 1 | . 1 Energy Cannon . | . . Ballistic Gun 5 | . 5 Ballistic Cannon 1 | . 1 Launcher 2 | . 2 Special Weapon . | . . Impact Weapon . | . . Slashing Weapon . | . . Piercing Weapon . | . . Special Melee Weapon . | . . Unidentified Prototypes . | . . Parts Lost 4 | . 4 Power 1 | . 1 Propulsion 1 | . 1 Utility 1 | . 1 Weapon 1 | . 1 Highest Loss Streak 1 | . 1 To Critical Strikes . | . . Average Slot Usage (%) 91 | . 91 Engine 13 | . 13 Leg 27 | . 27 Device 2 | . 2 Storage 14 | . 14 Protection 6 | . 6 Energy Gun 1 | . 1 Ballistic Gun 16 | . 16 Ballistic Cannon 1 | . 1 Launcher 6 | . 6 Naked Turns . | . . Heaviest Build 28 | 12 28 Greatest Support 20 | 20 20 Greatest Overweight (x) 1 | . 1 Average Overweight (x) . | . . Largest Inventory Capacity 15 | . 15 Average Capacity 14 | . 14 Most Carried 13 | . 13 Average Carried 9 | . 9 Final Capacity 15 | 8 15 Final Carried 13 | 6 13 Class Distribution -------------------- 75% | Mutant 24% | Scavenger-Mutant Dominant Class ---------------- Mutant | -10/Materials Resources | -11 -10 ----------- Run | Jun Mat Matter Collected 551 | 200 351 Remotely . | . . Salvage Created 622 | . 622 Parts 37 | . 37 Haulers Intercepted . | . . Recyclers Shooed 2 | . 2 Parts Field Recycled . | . . Retrieved Matter . | . . Parts Self-Destructed . | . . Prevented . | . . Kills | -11 -10 ------- Run | Jun Mat Combat Hostiles Destroyed 14 | . 14 Guns 8 | . 8 Cannons 2 | . 2 AOE 4 | . 4 Classes Destroyed 7 | . 7 Worker 2 | . 2 Builder 1 | . 1 Recycler 1 | . 1 Operator 1 | . 1 Watcher 1 | . 1 Swarmer 6 | . 6 Grunt 8 | . 8 Best Kill Streak 6 | . 6 Combat Bots Only 3 | . 3 Max Kills in Single Turn 4 | . 4 Gunslinging . | . . Exploded 1 | . 1 Melee . | . . Uniques/NPCs Destroyed . | . . Combat | -11 -10 -------- Run | Jun Mat Damage Taken 944 | . 944 Core 258 | . 258 Absorbed by Shields . | . . Redirected to Shielding 6 | . 6 Regen/Repaired (Parts) 28 | . 28 Core Remaining (%) 100 | 100 . Volleys Fired 82 | . 82 Largest 2 | . 2 Hottest 90 | . 90 Shots Fired 122 | . 122 Gun 80 | . 80 Cannon 10 | . 10 Launcher 32 | . 32 Special . | . . Kinetic 70 | . 70 Thermal 13 | . 13 Explosive 32 | . 32 Electromagnetic 7 | . 7 Robot Hit Streak 6 | . 6 Robot Miss Streak 5 | . 5 Penetration Max . | . . Secondary Targets 1 | . 1 Max Gunslinging Chain 1 | . 1 Shots Hit Robots 48 | . 48 Core Hits 47 | . 47 Critical Kills . | . . Critical Parts Destroyed . | . . Critical Strikes . | . . Melee Attacks . | . . Impact . | . . Slashing . | . . Piercing . | . . Sneak Attacks . | . . Combat Hostiles . | . . Follow-up Attacks . | . . Damage Inflicted 1151 | . 1151 Guns 389 | . 389 Cannons 103 | . 103 Explosions 633 | . 633 Melee . | . . Ramming 26 | . 26 Kinetic 350 | . 350 Thermal 69 | . 69 Explosive 361 | . 361 Electromagnetic 345 | . 345 Impact . | . . Slashing . | . . Piercing . | . . Highest Corruption . | . . Average Corruption . | . . Corruption Purged . | . . Corruption Blocked . | . . Overload Shots . | . . Overflow Damage 54 | . 54 Projectiles . | . . Explosions 54 | . 54 Melee . | . . Knockbacks . | . . Impact . | . . Kinetic . | . . Secondary . | . . Self-Inflicted Damage 17 | . 17 Shots 1 | . 1 Rammed . | . . Targets Rammed 4 | . 4 Kicked 4 | . 4 Crushed . | . . Highest Temperature 94 | . 94 Average Temperature 30 | . 30 Received Heat Transfer 423 | . 423 Siege Activations . | . . Robots Corrupted . | . . Combat Hostiles . | . . Parts Fried . | . . Impact Corruptions . | . . Robots Melted . | . . Combat Hostiles . | . . Parts Melted . | . . Heat Transferred 162 | . 162 Parts Sabotaged . | . . Parts Stolen . | . . Parts Stripped . | . . Power Chain Reactions 1 | . 1 Missiles Intercepted . | . . Alert | -11 -10 ------- Run | Jun Mat Peak Influence 479 | . 479 Initial . | . . Average 245 | . 245 Maximum Alert Level 2 | . 2 Low Security (%) 45 | . 45 Level 1 37 | . 37 Level 2 16 | . 16 Level 3 . | . . Level 4 . | . . Level 5 . | . . High Security . | . . Max Security . | . . Squads Dispatched 2 | . 2 Investigation 1 | . 1 Extermination . | . . Reinforcement 1 | . 1 Assault . | . . Garrison . | . . Intercept . | . . Searches Triggered . | . . Construction Impeded . | . . Haulers Reinforced . | . . Active Scanning Responses . | . . Cargo Convoy Interrupts . | . . Stealth | -11 -10 --------- Run | Jun Mat Distress Signals 1 | . 1 Communications Jammed . | . . Distress Signals . | . . Times Spotted 27 | . 27 Peak Tracking Total 4 | . 4 Tactical Retreats 1 | . 1 Traps | -11 -10 ------- Run | Jun Mat Traps Triggered 2 | . 2 Indirectly . | . . Trap Hack Attempts . | . . Triggered . | . . Disarmed . | . . Reprogrammed . | . . Reused . | . . Traps Extracted . | . . Installed . | . . Triggered . | . . Machines | -11 -10 ---------- Run | Jun Mat Machines Disabled 22 | . 22 Max in Single Turn 5 | . 5 Machines Repaired . | . . Machines Sabotaged . | . . Overloaded Fab Kills . | . . Hacking | -11 -10 --------- Run | Jun Mat Machines Accessed 5 | . 5 Terminals 4 | . 4 Fabricators . | . . Repair Stations 1 | . 1 Recycling Units . | . . Scanalyzers . | . . Garrison Access . | . . Total Hacks 15 | . 15 Successful 5 | . 5 Failed 10 | . 10 Catastrophic 1 | . 1 Database Lockouts . | . . Manual 1 | . 1 Terminals 11 | . 11 Fabricators . | . . Repair Stations 4 | . 4 Recycling Units . | . . Scanalyzers . | . . Garrison Access . | . . Terminal Hacks 2 | . 2 Prototype ID Bank 1 | . 1 Hauler Manifests 1 | . 1 Fabricator Hacks . | . . Repair Station Hacks 2 | . 2 Scan Component 1 | . 1 Repair 1 | . 1 Recycling Unit Hacks . | . . Scanalyzer . | . . Garrison Access Hacks . | . . Unauthorized Hacks 1 | . 1 Terminals 1 | . 1 Detonate 1 | . 1 Fabricators . | . . Repair Stations . | . . Recycling Units . | . . Scanalyzers . | . . Garrison Access . | . . Data Cores Recovered . | . . Used . | . . Hacking Detections 5 | . 5 Full Trace Events . | . . Feedback Events . | . . Feedback Blocked . | . . Robot Schematics Acquired . | . . Robots Built . | . . Authchips . | . . Time . | . . Total Robot Build Rating . | . . Part Schematics Acquired . | . . Parts Built . | . . Authchips . | . . Time . | . . Total Part Build Rating . | . . Parts Repaired 1 | . 1 Time 13 | . 13 Parts Recycled . | . . Recycled Matter . | . . Retrieved Matter . | . . Retrieved Components . | . . Parts Scanalyzed . | . . Part Schematics Acquired . | . . Parts Damaged . | . . Bothacking | -11 -10 ------------ Run | Jun Mat Used RIF Installer . | . . Robots Hacked . | . . Non-combat . | . . Combat . | . . Robot Hacks Applied . | . . Relay Couplers Released . | . . Fabnet Peak Effective % . | . . Robots Rewired . | . . Allies Hacked . | . . Hacks Repelled . | . . Allies | -11 -10 -------- Run | Jun Mat Total Allies . | . . Largest Group . | . . Highest-Rated Group . | . . Highest-Rated Ally . | . . Total Orders . | . . Ally Attacks . | . . Total Damage . | . . Kills . | . . Allies Corrupted . | . . Allies Melted . | . . Intel | -11 -10 ------- Run | Jun Mat Robot Analysis Total . | . . Derelict Logs Recovered . | . . Drone Launches . | . . Drone Recoveries . | . . Exploration | -11 -10 ------------- Run | Jun Mat Turns Passed 1831 | . 1831 Spaces Moved 832 | 1 831 Core . | . . Treads . | . . Legs 832 | 1 831 Wheels . | . . Hover . | . . Flight . | . . Fastest Speed 120 | 120 120 Average Speed 184 | 120 184 Slowest Speed 190 | 120 190 Overloaded Moves . | . . Propulsion Burnouts . | . . Robots Hopped . | . . Cave-ins Triggered . | . . Exploration Rate (%) 49 | 3 96 Regions Visited 1 Branch Regions . Pre-discovered Areas . | . . Known Exits Taken . | . . Unknown Exits Taken 1 | 1 . Scrap Searched . | . . Spaces Dug 9 | . 9 Terrain Destroyed 82 | . 82 Melee . | . . Projectile . | . . AOE 82 | . 82 Terrain Rammed . | . . Walls Destroyed . | . . Machines Disabled . | . . Actions | -11 -10 --------- Run | Jun Mat Total 1011 | . 1011 Wait 61 | . 61 Move 831 | . 831 Hop . | . . Pick Up 8 | . 8 Fast Attach 8 | . 8 Attach 2 | . 2 Detach . | . . Swap 9 | . 9 Drop 6 | . 6 Fire 82 | . 82 Melee . | . . Ram . | . . Kick 4 | . 4 Crush . | . . Escape Stasis . | . . Rewire . | . . Trap . | . . Miscellaneous . | . . Route ------- -11/Junkyard -10/Materials (discovered 4 exits: [*Mat x3] / [*Min]) History --------- Turn | Location | Event 1 | -11/Junkyard | Discovered new exit (range 0) 1 | -11/Junkyard | Entered Materials 208 | -10/Materials | Discovered new exit (range 7) 318 | -10/Materials | Build established: Mutant 472 | -10/Materials | Core integrity fell below 50% 695 | -10/Materials | Discovered new exit (range 5) 732 | -10/Materials | Build established: Scavenger-Mutant 813 | -10/Materials | Discovered new exit (range 15) 826 | -10/Materials | Core integrity fell below 20% 999 | -10/Materials | Discovered new exit (range 10) 1073 | -10/Materials | Repaired Lgt. Ion Engine 1170 | -10/Materials | Build established: Mutant 1832 | -10/Materials | Destroyed by G-34 Mercenary with Small Laser Last Messages --------------- 01321_ Acquired Lgt. Assault Rifle. 01576_ Terminal disabled. 01609_ The unstable cave ceiling collapses. 01647_ Electrolysis Chamber disabled. 01655_ The unstable cave ceiling collapses. 01663_ U-05 Engineer lays Concrete. 01683_ Acquired 11 matter. 01684_ U-05 Engineer lays Concrete. 01688_ U-05 Engineer builds a Wall. 01693_ U-05 Engineer lays Concrete. 01695_ U-05 Engineer builds a Wall. 01766_ Acquired 2 matter. 01768_ Acquired 4 matter. 01787_ Acquired 51 matter. 01803_ Triggered Alarm Trap. 01803_ An alarm sounds. 01803_ ALERT: Alarm triggered, dispatching investigation squad. 01809_ G-34 Mercenary destroyed. 01819_ K-01 Serf destroyed. 01823_ G-34 Mercenary destroyed. Map ----- +----------------------------------------------------+ | | | | | | | | | | | | | | | | | | | | | | | | | | | | | ?????????????????###########???????????????????? | | ?????????????????# #???????????????????? | | ?????????????????# #???????????????????? | | ?????????????????# #???????????????????? | | ?????????######### #???????????????????? | | ?????????# / #???????????????????? | | ?????????# ### #???????#####???????? | | ??########### #?# #???????# ######### | | ??# # #?# #???????# < # | | ??# """ + #######w############# # """" " | | ??# """"" # =%* *%=% + """" " | | ??# """"" # @ = g%*% # """" " | | ??# """"" # #######+############# # | | ??# """ # #??# #??????# ######### | | ??# # #??# "" """ #??????# ######### | | ??# + #??# "T """ #??????# #? | | ??##+######## #??# "" """ #??????# # | | ???# #??????# #??# #??????# + ! | | ???# #??????# #??# #??????# # "" | | ???# #??????# #??# #??????# # | | ???# ######## #??# | #?????## ##### | | ???# #??#############???# ### | | ???# ########+######## #???# | | ???#^#?# ## """ #???# | | ?### ### """"" ## """ #???# | | ?# # """"" ## """ #???# #### | | ?# # """"" ## #???#######??# | | ?# # ## #????????????# | | ?# ####+######### #?????######## | | ?# #?# #?# #?????# | | ?#### ##?# """" #??# #?????# | | ????# #??# """" ##### # ###### | | ????# #??# """" # # | | ????# #??# # + | | ????# #??# %"""" # # | | ????# #??# = """" # # # ######## | +----------------------------------------------------+ Best States ------------- Heat Dissipation 35 Energy Generation 10 Energy Capacity 125 Matter Stores 300 Matter Capacity 300 Sight Range 16 Terrain Scan Density 10 Power Shielding 33 Evasion (%) 55 Item Schematics ----------------- None Robot Schematics ------------------ None Fabricated ------------ Nothing Alien Tech Used ----------------- None Achievements -------------- None Challenges ------------ None Game ------ Seed ParticleImpactFlamer Manual? 0 Play Time 00:11:57 Cumulative 115.0 hours Start 2023.05.13 @ 03:03:02 End 2023.05.13 @ 03:27:58 Sessions 1 Manual Loads 0 Difficulty Rogue Special Mode None Game No. 104 Rogue 56 Adventurer 22 Explorer 26 Win Type - Total 0 Types 0/0/0/0/0/0/0/0/0 Lore% 38 Gallery% 57 Achievement% 66 Wizard Run 0 Options --------- ASCII 0 Keyboard 0 Movement Mouse Keybinds 0 Fullscreen 0 Font 16/Smallcaps Map View 76x50 Tactical HUD 1 Map Filters NONE Filters BRIGHTNESS(125)|SATURATION(75)|LOW_CONTRAST(0,16,30)|SHIFT_HUE(130) Steam 1 RUN: afe3e0f7-00ce-496f-843c-bcd6514d5daa